Cogmind - Beta 14 @@@ ROGUE MODE // 2024.11.18 @ 19:43:38 Player: Beleaguer Result: Destroyed by S-27 Virus with Autogun Performance ------------- Evolutions (3) 1500 Regions Visited (6) 1200 Robots Destroyed (53) 265 Value Destroyed (1327) 1327 Prototype IDs (2) 40 Alien Tech Used (0) 0 Bonus (804) 804 TOTAL SCORE: 5136 Bonus ------- High Alert Combat Kills 44 Follower Combat Kills 278 Entered DSFs 500 Friendly Fire -18 Cogmind --------- Core Integrity 0/700 Matter 275/300 Energy 100/100 System Corruption 0% Temperature Cool (0) Movement Core (50) Location -7/DSF Parts ------- > --- POWER (2) -------- (None) > --- PROPULSION (4) --- (None) > --- UTILITY (5) ------ (None) > --- WEAPON (2) ------- (None) > --- INVENTORY (5) ---- Advanced Heat Sink Disposable Heat Sink Peak State ------------ > --- POWER ------------ Improved Ion Engine Light Nuclear Core > --- PROPULSION ------- Aluminum Leg Aluminum Leg Carbon-fiber Leg > --- UTILITY ---------- Improved Heat Sink Small Storage Unit Trap Scanner Recoil Stabilizer Improved Medium Armor Plating > --- WEAPON ----------- Lightning Gun Advanced Beam Cannon > --- INVENTORY -------- Advanced Heat Sink Disposable Heat Sink Advanced Beam Rifle Gatling Laser Heavy Assault Rifle Concussive RPG [Rating: 33] Favorites ----------- Power Improved Ion Engine Engine Improved Ion Engine Power Core Light Nuclear Core Propulsion Aluminum Leg Leg Aluminum Leg Utility Small Storage Unit Device Improved Heat Sink Storage Small Storage Unit Processor Transport Network Coupler Hackware Hacking Suite Protection Hardened Light Armor Plating Weapon Small Laser Energy Gun Small Laser Energy Cannon Advanced Beam Cannon Ballistic Gun Heavy Assault Rifle Launcher Concussive RPG Build | -11 -10 -10 -9 -8 -7 -7 ------- Run | Yrd Mat Min Mat Mat Fac DSF Slots Evolved 6 | . . . 2 2 2 . Power 1 | . . . . 1 . . Propulsion 2 | . . . 1 . 1 . Utility 3 | . . . 1 1 1 . Weapon . | . . . . . . . Parts Attached 61 | 7 4 8 14 18 4 6 Power 7 | 1 1 1 1 2 1 . Engine 6 | 1 1 1 1 2 . . Core 1 | . . . . . 1 . Reactor . | . . . . . . . Propulsion 21 | 2 1 3 5 9 1 . Treads . | . . . . . . . Leg 21 | 2 1 3 5 9 1 . Wheel . | . . . . . . . Hover . | . . . . . . . Flight . | . . . . . . . Utility 15 | 2 . 3 4 3 2 1 Device 7 | 1 . 2 . 2 1 1 Storage 2 | 1 . . 1 . . . Processor 1 | . . . 1 . . . Hackware 1 | . . . . 1 . . Protection 4 | . . 1 2 . 1 . Artifact . | . . . . . . . Weapon 18 | 2 2 1 4 4 . 5 Energy Gun 10 | 2 1 1 2 1 . 3 Energy Cannon 2 | . . . . 2 . . Ballistic Gun 5 | . 1 . 2 1 . 1 Ballistic Cannon . | . . . . . . . Launcher 1 | . . . . . . 1 Special Weapon . | . . . . . . . Impact Weapon . | . . . . . . . Slashing Weapon . | . . . . . . . Piercing Weapon . | . . . . . . . Special Melee Weapon . | . . . . . . . Unidentified Prototypes 1 | . . . . . . 1 Parts Lost 24 | . . 4 2 2 . 16 Power 4 | . . 1 . 1 . 2 Propulsion 7 | . . 2 1 1 . 3 Utility 7 | . . . 1 . . 6 Weapon 6 | . . 1 . . . 5 Highest Loss Streak 14 | . . 2 2 1 . 14 To Critical Strikes . | . . . . . . . Average Slot Usage (%) 97 | . 100 99 97 99 100 71 Engine 13 | . 14 14 11 18 7 4 Leg 27 | . 28 27 32 27 30 17 Device 12 | . 14 13 11 8 15 16 Storage 11 | . 14 14 11 9 7 6 Hackware 2 | . . . . 9 7 2 Protection 3 | . . . 4 9 7 4 Energy Gun 10 | . 26 13 11 2 . 1 Energy Cannon 2 | . . . . 6 7 5 Ballistic Gun 9 | . 1 14 11 9 7 4 Peak Build Rating 33 | 7 7 10 16 25 32 33 Average Rating 14 | 5 7 8 13 23 30 23 On Entrance 13 | . 7 7 10 16 23 32 Naked Turns 12 | . . . . . . 12 Heaviest Build 35 | 14 14 16 24 32 33 35 Greatest Support 45 | 20 20 20 30 38 45 45 Greatest Overweight (x) 5 | 4 . 1 1 . . 5 Average Overweight (x) . | . . . . . . . Largest Inventory Capacity 8 | 8 8 8 8 8 8 8 Average Capacity 7 | 7 8 8 8 8 8 7 Most Carried 8 | 4 8 8 8 8 8 7 Average Carried 6 | 1 5 7 7 7 6 5 Final Capacity 8 | 8 8 8 8 8 8 5 Final Carried 8 | 4 7 8 8 8 7 2 Class Distribution -------------------- 80% | Scavenger-Mutant 19% | Mutant Dominant Class ---------------- Mutant | -10/Materials Scavenger-Mutant | -10/Mines Scavenger-Mutant | -9/Materials Scavenger-Mutant | -8/Materials Scavenger-Mutant | -7/Factory Mutant | -7/DSF Resources | -11 -10 -10 -9 -8 -7 -7 ----------- Run | Yrd Mat Min Mat Mat Fac DSF Matter Collected 1017 | 270 30 113 258 324 . 22 Remotely . | . . . . . . . Salvage Created 1977 | 87 371 227 327 869 . 96 Parts 103 | 8 17 21 13 38 . 6 Haulers Intercepted 3 | . 1 . 1 1 . . Recyclers Shooed 1 | . . . 1 . . . Parts Field Recycled . | . . . . . . . Retrieved Matter . | . . . . . . . Parts Self-Destructed . | . . . . . . . Prevented . | . . . . . . . Kills | -11 -10 -10 -9 -8 -7 -7 ------- Run | Yrd Mat Min Mat Mat Fac DSF Combat Hostiles Destroyed 39 | . 6 11 6 14 . 2 Guns 31 | . 6 11 6 7 . 1 Cannons 8 | . . . . 7 . 1 Classes Destroyed 10 | 2 4 1 1 1 . 1 Worker 2 | . . 1 . 1 . . Tunneler 1 | 1 . . . . . . Hauler 3 | . 1 . 1 1 . . Recycler 5 | 1 2 . . 2 . . Watcher 3 | . 1 . 1 1 . . Swarmer 12 | . 3 9 . . . . Cutter 3 | . . . . 3 . . Grunt 19 | . 3 2 4 10 . . Sentry 3 | . . . 2 1 . . Specialist 2 | . . . . . . 2 Best Kill Streak 4 | 1 4 4 2 4 . 2 Combat Bots Only 3 | . 3 3 2 3 . 2 Max Kills in Single Turn 2 | 1 1 1 1 2 . 1 Gunslinging . | . . . . . . . Exploded . | . . . . . . . Melee . | . . . . . . . Uniques/NPCs Destroyed . | . . . . . . . Combat | -11 -10 -10 -9 -8 -7 -7 -------- Run | Yrd Mat Min Mat Mat Fac DSF Hostile Shots Fired 369 | . 40 69 65 68 . 127 Missed 111 | . 11 17 21 18 . 44 Damage Taken 3998 | . 265 502 557 870 . 1804 Core 987 | . 49 61 96 70 . 711 Absorbed by Shields 32 | . . . . . . 32 Regen/Repaired (Parts) 61 | . . . . 61 . . Core Remaining (%) 79 | 100 . 56 76 87 . . Volleys Fired 193 | 5 31 42 49 49 . 17 Largest 2 | 2 2 2 2 2 . 2 Hottest 123 | 90 90 70 79 91 . 123 Shots Fired 377 | 10 61 83 94 98 . 31 Gun 311 | 10 61 83 94 49 . 14 Cannon 65 | . . . . 49 . 16 Launcher 1 | . . . . . . 1 Special . | . . . . . . . Kinetic 149 | . . 42 49 49 . 9 Thermal 222 | 10 61 41 45 49 . 16 Explosive 1 | . . . . . . 1 Electromagnetic 5 | . . . . . . 5 Robot Hit Streak 10 | 4 8 6 8 10 . 3 Robot Miss Streak 8 | 1 6 8 5 3 . 3 Penetration Max . | . . . . . . . Secondary Targets 3 | . . 3 . . . . Max Gunslinging Chain 1 | . . 1 . . . . Shots Hit Robots 216 | 6 38 38 56 62 . 16 Core Hits 95 | 3 15 19 18 34 . 6 Critical Kills . | . . . . . . . Critical Parts Destroyed 1 | . . . . 1 . . Critical Strikes 6 | . 4 1 . 1 . . Burn 5 | . 4 1 . . . . Destroy 1 | . . . . 1 . . Melee Attacks . | . . . . . . . Impact . | . . . . . . . Slashing . | . . . . . . . Piercing . | . . . . . . . Sneak Attacks . | . . . . . . . Combat Hostiles . | . . . . . . . Follow-up Attacks . | . . . . . . . Damage Inflicted 3277 | 83 494 415 745 1210 . 330 Guns 2342 | 83 484 407 745 449 . 174 Cannons 878 | . . . . 756 . 122 Explosions 34 | . . . . . . 34 Melee . | . . . . . . . Ramming 23 | . 10 8 . 5 . . Kinetic 1177 | . . 129 506 449 . 93 Thermal 1962 | 83 484 278 239 756 . 122 Explosive 34 | . . . . . . 34 Electromagnetic 81 | . . . . . . 81 Impact . | . . . . . . . Slashing . | . . . . . . . Piercing . | . . . . . . . Highest Corruption . | . . . . . . . Average Corruption . | . . . . . . . Corruption Purged . | . . . . . . . Corruption Blocked . | . . . . . . . Overload Shots . | . . . . . . . Overflow Damage 8 | . . . . . . 8 Projectiles 8 | . . . . . . 8 Explosions . | . . . . . . . Melee . | . . . . . . . Knockbacks . | . . . . . . . Impact . | . . . . . . . Kinetic . | . . . . . . . Secondary . | . . . . . . . Self-Inflicted Damage 27 | . . . . . . 27 Shots 1 | . . . . . . 1 Rammed . | . . . . . . . Targets Rammed 6 | . 3 2 . 1 . . Kicked 6 | . 3 2 . 1 . . Crushed . | . . . . . . . Highest Temperature 222 | 90 210 222 12 171 . 40 Average Temperature 65 | 40 85 78 12 46 . 15 Received Heat Transfer 1143 | . 60 120 261 378 . 324 Siege Activations . | . . . . . . . Robots Corrupted . | . . . . . . . Combat Hostiles . | . . . . . . . Parts Fried . | . . . . . . . Impact Corruptions . | . . . . . . . Robots Melted 1 | . 1 . . . . . Combat Hostiles . | . . . . . . . Parts Melted 10 | . 4 1 1 4 . . Heat Transferred 4777 | 211 1560 865 550 1369 . 222 Parts Sabotaged . | . . . . . . . Parts Stolen . | . . . . . . . Parts Stripped . | . . . . . . . Power Chain Reactions . | . . . . . . . Alert | -11 -10 -10 -9 -8 -7 -7 ------- Run | Yrd Mat Min Mat Mat Fac DSF Peak Influence 498 | 10 265 302 303 498 221 199 Initial 221 | . 6 103 . 110 221 154 Average 170 | 7 116 157 171 251 221 144 Maximum Alert Level 2 | . 1 1 1 2 1 . Low Security (%) 60 | 100 78 73 50 34 . 100 Level 1 36 | . 21 26 49 49 100 . Level 2 3 | . . . . 15 . . Level 3 . | . . . . . . . Level 4 . | . . . . . . . Level 5 . | . . . . . . . High Security . | . . . . . . . Max Security . | . . . . . . . Squads Dispatched 7 | . . . 2 3 . 2 Investigation 1 | . . . . 1 . . Extermination . | . . . . . . . Reinforcement 6 | . . . 2 2 . 2 Assault . | . . . . . . . Garrison . | . . . . . . . Intercept . | . . . . . . . Searches Triggered . | . . . . . . . Construction Impeded 1 | . . . . 1 . . Haulers Reinforced . | . . . . . . . Active Scanning Responses . | . . . . . . . Cargo Convoy Interrupts . | . . . . . . . Stealth | -11 -10 -10 -9 -8 -7 -7 --------- Run | Yrd Mat Min Mat Mat Fac DSF Distress Signals 8 | . 4 . 2 2 . . Communications Jammed . | . . . . . . . Distress Signals . | . . . . . . . Times Spotted 83 | . 13 11 22 22 . 15 Peak Tracking Total 8 | . 6 3 4 5 . 8 Tactical Retreats 12 | . 3 . . 5 . 4 Traps | -11 -10 -10 -9 -8 -7 -7 ------- Run | Yrd Mat Min Mat Mat Fac DSF Traps Triggered 1 | . . . . . . 1 Indirectly . | . . . . . . . Trap Hack Attempts . | . . . . . . . Triggered . | . . . . . . . Disarmed . | . . . . . . . Reprogrammed . | . . . . . . . Reused . | . . . . . . . Traps Extracted . | . . . . . . . Installed . | . . . . . . . Triggered . | . . . . . . . Machines | -11 -10 -10 -9 -8 -7 -7 ---------- Run | Yrd Mat Min Mat Mat Fac DSF Machines Disabled 1 | . . . . 1 . . Max in Single Turn 1 | . . . . 1 . . Machines Repaired . | . . . . . . . Machines Dismantled . | . . . . . . . Machines Sabotaged . | . . . . . . . Overloaded Fab Kills . | . . . . . . . Hacking | -11 -10 -10 -9 -8 -7 -7 --------- Run | Yrd Mat Min Mat Mat Fac DSF Machines Accessed 9 | . . . 3 5 1 . Terminals 5 | . . . 3 1 1 . Fabricators . | . . . . . . . Repair Stations 1 | . . . . 1 . . Recycling Units 1 | . . . . 1 . . Scanalyzers 2 | . . . . 2 . . Garrison Access . | . . . . . . . Total Hacks 31 | . . . 7 23 1 . Successful 25 | . . . 3 21 1 . Failed 6 | . . . 4 2 . . Catastrophic . | . . . . . . . Database Lockouts . | . . . . . . . Manual 4 | . . . 3 1 . . Terminals 10 | . . . 7 2 1 . Fabricators . | . . . . . . . Repair Stations 4 | . . . . 4 . . Recycling Units 4 | . . . . 4 . . Scanalyzers 13 | . . . . 13 . . Garrison Access . | . . . . . . . Terminal Hacks 5 | . . . 3 1 1 . Record 1 | . . . 1 . . . Open DSF 1 | . . . . . 1 . Dispatch Records 1 | . . . 1 . . . Maintenance Status 1 | . . . 1 . . . Zone Layout 1 | . . . . 1 . . Fabricator Hacks . | . . . . . . . Repair Station Hacks 3 | . . . . 3 . . Scan Component 2 | . . . . 2 . . Repair 1 | . . . . 1 . . Recycling Unit Hacks 4 | . . . . 4 . . Process 2 | . . . . 2 . . Report Inventory 1 | . . . . 1 . . Retrieve Matter 1 | . . . . 1 . . Scanalyzer 12 | . . . . 12 . . Insert Component 5 | . . . . 5 . . Analyze 7 | . . . . 7 . . Garrison Access Hacks . | . . . . . . . Unauthorized Hacks 1 | . . . . 1 . . Terminals 1 | . . . . 1 . . Assimilate 1 | . . . . 1 . . Fabricators . | . . . . . . . Repair Stations . | . . . . . . . Recycling Units . | . . . . . . . Scanalyzers . | . . . . . . . Garrison Access . | . . . . . . . Data Cores Recovered 1 | . . . 1 . . . Used . | . . . . . . . Hacking Detections 5 | . . . 1 3 1 . Full Trace Events 1 | . . . . 1 . . Feedback Events . | . . . . . . . Feedback Blocked . | . . . . . . . Robot Schematics Acquired . | . . . . . . . Robots Built . | . . . . . . . Authchips . | . . . . . . . Time . | . . . . . . . Total Robot Build Rating . | . . . . . . . Part Schematics Acquired 5 | . . . . 5 . . Parts Built . | . . . . . . . Authchips . | . . . . . . . Time . | . . . . . . . Total Part Build Rating . | . . . . . . . Parts Repaired 1 | . . . . 1 . . Time 26 | . . . . 26 . . Parts Recycled . | . . . . . . . Recycled Matter 21 | . . . . 21 . . Retrieved Matter 21 | . . . . 21 . . Retrieved Components . | . . . . . . . Parts Scanalyzed 5 | . . . . 5 . . Part Schematics Acquired 5 | . . . . 5 . . Parts Damaged . | . . . . . . . Bothacking | -11 -10 -10 -9 -8 -7 -7 ------------ Run | Yrd Mat Min Mat Mat Fac DSF Used RIF Installer . | . . . . . . . Robots Hacked . | . . . . . . . Non-combat . | . . . . . . . Combat . | . . . . . . . Robot Hacks Applied . | . . . . . . . Relay Couplers Released . | . . . . . . . Fabnet Peak Effective % . | . . . . . . . Robots Rewired . | . . . . . . . Allies Hacked . | . . . . . . . Hacks Repelled . | . . . . . . . Allies | -11 -10 -10 -9 -8 -7 -7 -------- Run | Yrd Mat Min Mat Mat Fac DSF Total Allies 6 | . . 6 . . . . Largest Group 5 | . . 5 3 . . . Highest-Rated Group 81 | . . 81 40 . . . Highest-Rated Ally 31 | . . 31 16 . . . Total Orders . | . . . . . . . Ally Attacks 82 | . . 7 75 . . . Total Damage 891 | . . 42 849 . . . Kills 11 | . . . 11 . . . Allies Corrupted . | . . . . . . . Allies Melted . | . . . . . . . Intel | -11 -10 -10 -9 -8 -7 -7 ------- Run | Yrd Mat Min Mat Mat Fac DSF Robot Analysis Total . | . . . . . . . Derelict Logs Recovered 3 | . . 3 . . . . Drone Launches . | . . . . . . . Drone Recoveries . | . . . . . . . Exploration | -11 -10 -10 -9 -8 -7 -7 ------------- Run | Yrd Mat Min Mat Mat Fac DSF Turns Passed 3138 | 135 399 927 644 658 155 220 Spaces Moved 1839 | 83 214 625 342 350 122 103 Core 55 | 12 . . . . . 43 Treads . | . . . . . . . Legs 1784 | 71 214 625 342 350 122 60 Wheels . | . . . . . . . Hover . | . . . . . . . Flight . | . . . . . . . Fastest Speed 50 | 50 120 120 120 120 120 50 Average Speed 122 | 122 120 120 129 120 120 123 Slowest Speed 300 | 250 120 190 190 120 120 300 Overloaded Moves . | . . . . . . . Propulsion Burnouts . | . . . . . . . Robots Hopped . | . . . . . . . Cave-ins Triggered . | . . . . . . . Exploration Rate (%) 31 | 4 32 92 21 18 3 49 Regions Visited 6 Branch Regions 1 Pre-discovered Areas 1 | . . 1 . . . . Known Exits Taken 2 | . . . 1 . 1 . Unknown Exits Taken 4 | 1 1 1 . 1 . . Scrap Searched 1 | . . 1 . . . . Spaces Dug . | . . . . . . . Terrain Destroyed . | . . . . . . . Melee . | . . . . . . . Projectile . | . . . . . . . AOE . | . . . . . . . Terrain Rammed . | . . . . . . . Walls Destroyed . | . . . . . . . Machines Disabled . | . . . . . . . Actions | -11 -10 -10 -9 -8 -7 -7 --------- Run | Yrd Mat Min Mat Mat Fac DSF Total 2365 | 106 295 726 452 490 131 165 Wait 161 | 1 31 39 14 43 . 33 Move 1833 | 82 213 624 341 349 121 103 Hop . | . . . . . . . Pick Up 67 | 11 8 8 19 17 4 . Fast Attach . | . . . . . . . Attach 32 | 7 . 5 6 5 4 5 Detach 1 | . . . . 1 . . Swap 29 | . 4 3 8 13 . 1 Drop 37 | . 5 3 15 12 2 . Fire 193 | 5 31 42 49 49 . 17 Melee . | . . . . . . . Ram . | . . . . . . . Kick 6 | . 3 2 . 1 . . Crush . | . . . . . . . Escape Stasis 6 | . . . . . . 6 Rewire . | . . . . . . . Trap . | . . . . . . . Miscellaneous . | . . . . . . . Route ------- -11/Scrapyard -10/Materials -10/Mines (discovered 2 exits: *Mat / [*Sub]) -9/Materials (discovered 2 exits: *Mat x2) -8/Materials -7/Factory -7/DSF History --------- Turn | Location | Event 10 | -11/Scrapyard | Discovered new exit (range 16) 136 | -11/Scrapyard | Entered Materials 312 | -10/Materials | Build established: Mutant 478 | -10/Materials | Discovered new exit (range 12) 535 | -10/Materials | Entered Mines 641 | -10/Mines | Learned location of Mines (-8) 879 | -10/Mines | Build established: Scavenger-Mutant 1002 | -10/Mines | Learned location of 1 exit from Materials 1013 | -10/Mines | Learned Materials terminal intel 1024 | -10/Mines | Received a Mining Laser from a helpful Derelict 1155 | -10/Mines | Assisted by bots powering up and referring to "LRC-V3" 1405 | -10/Mines | Discovered new exit (range 14) 1418 | -10/Mines | Discovered new exit (range 5) 1462 | -10/Mines | Entered Materials 1462 | -9/Materials | Accompanied by 3 allies 1462 | -9/Materials | Evolved 2 slots: Propulsion x1, Utility x1 1463 | -9/Materials | Identified exit to Materials 1464 | -9/Materials | Loaded intel: 12 terminal locations 1967 | -9/Materials | Discovered exit to Materials (range 7) 2106 | -9/Materials | Entered another Materials area 2106 | -8/Materials | Evolved 2 slots: Power x1, Utility x1 2200 | -8/Materials | Repaired Aluminum Leg 2757 | -8/Materials | Discovered new exit (range 5) 2764 | -8/Materials | Entered Factory 2764 | -7/Factory | Evolved 2 slots: Propulsion x1, Utility x1 2917 | -7/Factory | Identified exit to DSF 2919 | -7/Factory | Entered DSF 2983 | -7/DSF | Additional patrols routed to DSF 3114 | -7/DSF | Core integrity fell below 50% 3126 | -7/DSF | Core integrity fell below 20% 3139 | -7/DSF | Destroyed by S-27 Virus with Autogun Last Messages --------------- 03102_ Acquired 3 matter. 03103_ Imp. Heat Sink destroyed. 03103_ Critical hit (Burn: +37). 03110_ Faulty Adv. Beam Rifle destroyed. 03112_ X-67 Chaingunner springs to life. 03113_ The unstable cave ceiling collapses. 03120_ S-27 Virus destroyed. 03121_ Trap Scanner destroyed. 03126_ Critical hit (Burn: +37). 03127_ Sml. Storage Unit destroyed. 03133_ Triggered Stasis Trap. 03133_ A bubble of rippling energy engulfs the area. 03133_ Field strength at 94. 03134_ Field strength at 88. 03135_ Field strength at 72. 03136_ Field strength at 57. 03137_ Field strength at 47. 03138_ Field strength at 37. 03139_ Field strength at 31. Map ----- +----------------------------------------------------+ | ????????????????????????????????????????????????? | | ????????????????????????????????????????????????? | | ????????????????????????????????????????????????? | | ????????????????????????????????????????????????? | | ????????????????????????????????????????????????? | | ????????????????????????????????????????????????? | | ????????????????????????????????????????????????? | | ????????????????????????????????????????????????? | | ????????????????????????????????????????????????? | | ????????????????????????????????????????????????? | | ??????????????????????# #?????????????????????? | | ??????????????????????! !?????????????????????? | | ??????????????????????! !?????????????????????? | | ??????????????????????! !?????????????????????? | | ??????????????????????# #?##??####?######?????? | | ?????????????????????## a###==?#[[[## #?????? | | ?????????????????????#a ##===#[[[!# #?????? | | ????????????????????? !%[% #?????? | | ????????????????????? [[=% % ###???? | | ?????????????????????? g =%=% " #???? | | ??????????????????????a ?#!!!#!!!#" ###???? | | ??????????????????????# #?????#!??##= %#?????? | | ????????????????????### ###??????##" ###?????? | | ????????????????????#!! [[#??????#== =#??????? | | ????????????????????#!! [[#??????#== =#??????? | | ????????????????????#!! @ [[#??????#== =#??????? | | ????????????????????### s###??????### %%#??????? | | ????????????????????# #??????#== =#??????? | | ????????????????????# #??????#== =#??????? | | ????????????????????# ########## ##??????? | | ????????????????????### ###===#==### ###?????? | | ????????????????????### ss###===#==## ""###???? | | ????????????????????# H """""#??? | | ????????????????????# % ""##"#??? | | ????????????????????# # #==##"""""#?????? | | ????????????????????# #########"""""#?????? | | ????????????????????#########???????##"####?????? | | ?????????????????????????????????????#"#????????? | | ?????????????????????????????????????#""????????? | | ??????????????????????????????????????##????????? | | ????????????????????????????????????????????????? | | ????????????????????????????????????????????????? | | ????????????????????????????????????????????????? | | ????????????????????????????????????????????????? | | | | | | | | | | | | | +----------------------------------------------------+ Best States ------------- Heat Dissipation 48 Energy Generation 21 Energy Capacity 430 Matter Stores 300 Matter Capacity 300 Sight Range 16 Terrain Scan Density 10 Armor Coverage 225 Evasion (%) 55 Recoil Reduction 4 Offensive Hacking 10 Item Schematics ----------------- Adv. Beam Cannon | -8/Materials | Scanalyzed Aluminum Leg | -8/Materials | Scanalyzed Imp. Aluminum Leg | -8/Materials | Scanalyzed Recoil Stabilizer | -8/Materials | Scanalyzed Carbon-fiber Leg | -8/Materials | Scanalyzed Robot Schematics ------------------ None Fabricated ------------ Nothing Alien Tech Used ----------------- None Achievements -------------- True Hacker Challenges ------------ None Game ------ Seed AssembledTeslaMultitool Manual? 0 Play Time 01:47:16 Cumulative 102.3 hours Start 2024.11.18 @ 17:25:03 End 2024.11.18 @ 19:43:38 Sessions 3 Manual Loads 0 Difficulty Rogue Special Mode None Game No. 29 Rogue 22 Adventurer 7 Explorer 0 Win Type - Total 0 Types 0/0/0/0/0/0/0/0/0 Lore% 15 Gallery% 25 Achievement% 20 Wizard Run 0 Options --------- Layout 1 ASCII 0 Keyboard 0 Movement Arrows Keybinds 0 Fullscreen 1 Font 16/SmallcapsGlow Map View 50x40 Zoom Use 0% Tactical HUD 1 Map Filters NONE Filters NONE Steam SD RUN: 1704c966-ba43-418b-9093-e591fccc3cc3